fUST/lending_fUST_20240506
["ID","MTS","AMOUNT","RATE_DAILY","PERIOD"]
[326484107,1714991434352,-212.525029,0.00018699,2]
[326484109,1714991434361,-151.0,0.00018699,2]
[326484111,1714991434371,-151.0,0.00018699,2]
[326484113,1714991434380,-1002.237171,0.00018699,2]
[326484115,1714991434390,-1002.237171,0.00018699,2]
[326484117,1714991434400,-252.346941,0.00018699,2]
[326484119,1714991434409,-252.346941,0.00018699,2]
[326484121,1714991434419,-151.0,0.00018699,2]
[326484123,1714991434428,-151.0,0.00018699,2]
[326484125,1714991434437,-673.461393,0.00018699,2]
[326484127,1714991434447,-673.461393,0.00018699,2]
[326484129,1714991434456,-151.0,0.000187,2]
[326484131,1714991434466,-152.151873,0.000187,2]
[326484133,1714991434475,-259.446056,0.000187,2]
[326484135,1714991434485,-151.0,0.000187,2]
[326484137,1714991434494,-151.0,0.000187,2]
[326484139,1714991434504,-5000.0,0.000187,2]
[326484140,1714991434513,-151.0,0.000187,2]
[326484141,1714991434522,-151.0,0.000187,2]
[326484142,1714991434532,-151.0,0.000187,2]
[326484143,1714991434542,-151.0,0.000187,2]
[326484144,1714991434553,-248.851626,0.000187,2]
[326484145,1714991434563,-151.0,0.000187,2]
[326484146,1714991434572,-151.0,0.000187,2]
[326484147,1714991434582,-151.0,0.000187,2]
[326484148,1714991434591,-151.0,0.000187,2]
[326484149,1714991434600,-282.130794,0.000187,2]
[326484150,1714991434612,-151.0,0.000187,2]
[326484151,1714991434623,-151.0,0.000187,2]
[326484152,1714991434632,-151.0,0.000187,2]
[326484153,1714991434643,-1195.107408,0.000187,2]
[326484154,1714991434652,-151.0,0.000187,2]
[326484155,1714991434661,-1195.107408,0.000187,2]
[326484156,1714991434670,-151.0,0.000187,2]
[326484157,1714991434679,-1195.107408,0.000187,2]
[326484158,1714991434688,-151.0,0.000187,2]
[326484159,1714991434697,-633.366994,0.000187,2]
[326484160,1714991434706,-633.366994,0.000187,2]
[326484161,1714991434716,-633.366994,0.000187,2]
[326484162,1714991434725,-1195.107408,0.000187,2]
[326484163,1714991434734,-1195.107408,0.000187,2]
[326484164,1714991434743,-1195.107408,0.000187,2]
[326484165,1714991434752,-633.366994,0.000187,2]
[326484166,1714991434763,-633.366994,0.000187,2]
[326484167,1714991434772,-633.366994,0.000187,2]
[326484168,1714991434781,-2000.0,0.000187,2]
[326484169,1714991434790,-892.134924,0.000187,2]
[326484170,1714991434801,-892.134924,0.000187,2]
[326484171,1714991434813,-892.134924,0.000187,2]
[326484172,1714991434822,-151.0,0.000187,2]
[326484173,1714991434831,-151.0,0.000187,2]
[326484174,1714991434841,-151.0,0.000187,2]
[326484175,1714991434851,-151.0,0.000187,2]
[326484176,1714991434860,-212.525029,0.000187,2]
[326484177,1714991434870,-212.525029,0.000187,2]
[326484178,1714991434879,-212.525029,0.000187,2]
[326484179,1714991434888,-212.525029,0.000187,2]
[326484180,1714991434898,-212.525029,0.000187,2]
[326484181,1714991434907,-212.525029,0.000187,2]
[326484182,1714991434917,-1175.932323,0.000187,2]
[326484183,1714991434926,-1175.932323,0.000187,2]
[326484184,1714991434936,-1175.932323,0.000187,2]
[326484185,1714991434945,-1175.932323,0.000187,2]
[326484186,1714991434954,-1175.932323,0.000187,2]
[326484187,1714991434963,-1175.932323,0.000187,2]
[326484188,1714991434973,-1175.932323,0.000187,2]
[326484189,1714991434982,-1175.932323,0.000187,2]
[326484190,1714991434992,-1175.932323,0.000187,2]
[326484191,1714991435001,-1175.932323,0.000187,2]
[326484192,1714991435011,-1175.932323,0.000187,2]
[326484193,1714991435020,-1175.932323,0.000187,2]
[326484194,1714991435029,-447.767019,0.000187,2]
[326484195,1714991435038,-447.767019,0.000187,2]
[326484196,1714991435049,-447.767019,0.000187,2]
[326484197,1714991435059,-447.767019,0.000187,2]
[326484198,1714991435068,-447.767019,0.000187,2]
[326484199,1714991435078,-447.767019,0.000187,2]
[326484200,1714991435087,-447.767019,0.000187,2]
[326484201,1714991435096,-447.767019,0.000187,2]
[326484202,1714991435106,-447.767019,0.000187,2]
[326484203,1714991435116,-447.767019,0.000187,2]
[326484204,1714991435126,-447.767019,0.000187,2]
[326484205,1714991435136,-447.767019,0.000187,2]
[326484206,1714991435147,-55555.0,0.000187,2]
[326484207,1714991435157,-151.0,0.000187,2]
[326484208,1714991435167,-151.0,0.000187,2]
[326484209,1714991435176,-151.0,0.000187,2]
[326484210,1714991435186,-151.0,0.000187,2]
[326484211,1714991435196,-151.0,0.000187,2]
[326484212,1714991435205,-151.0,0.000187,2]
[326484213,1714991435215,-151.0,0.000187,2]
[326484214,1714991435225,-151.0,0.000187,2]
[326484215,1714991435234,-151.0,0.000187,2]
[326484216,1714991435244,-151.0,0.000187,2]
[326484217,1714991435253,-245.361411,0.000187,2]
[326484218,1714991435263,-1002.237171,0.000187,2]
[326484219,1714991435273,-1002.237171,0.000187,2]
[326484220,1714991435282,-1002.237171,0.000187,2]
[326484221,1714991435292,-1002.237171,0.000187,2]
[326484222,1714991435304,-1002.237171,0.000187,2]
[326484223,1714991435314,-1002.237171,0.000187,2]
[326484224,1714991435324,-1002.237171,0.000187,2]
[326484225,1714991435334,-1002.237171,0.000187,2]
[326484226,1714991435344,-1002.237171,0.000187,2]
[326484227,1714991435354,-1002.237171,0.000187,2]
[326484228,1714991435364,-1002.237171,0.000187,2]
[326484229,1714991435373,-1002.237178,0.000187,2]
[326484230,1714991435383,-252.346941,0.000187,2]
[326484231,1714991435393,-252.346941,0.000187,2]
[326484232,1714991435402,-252.346941,0.000187,2]
[326484233,1714991435412,-252.346941,0.000187,2]
[326484234,1714991435422,-252.346941,0.000187,2]
[326484235,1714991435438,-252.346941,0.000187,2]
[326484236,1714991435449,-252.346941,0.000187,2]
[326484237,1714991435459,-252.346941,0.000187,2]
[326484238,1714991435468,-252.346941,0.000187,2]
[326484239,1714991435477,-252.346939,0.000187,2]
[326484240,1714991435487,-151.0,0.000187,2]
[326484241,1714991435497,-151.0,0.000187,2]
[326484242,1714991435506,-151.0,0.000187,2]
[326484243,1714991435516,-151.0,0.000187,2]
[326484244,1714991435526,-151.0,0.000187,2]
[326484245,1714991435535,-180.352667,0.000187,2]
[326484246,1714991435549,-673.461393,0.000187,2]
[326484247,1714991435559,-673.461393,0.000187,2]
[326484248,1714991435569,-673.461393,0.000187,2]
[326484249,1714991435578,-673.461393,0.000187,2]
[326484250,1714991435587,-673.461393,0.000187,2]
[326484251,1714991435598,-673.461393,0.000187,2]
[326484252,1714991435607,-673.461393,0.000187,2]
[326484253,1714991435616,-673.461393,0.000187,2]
[326484254,1714991435627,-673.461393,0.000187,2]
[326484255,1714991435637,-673.461388,0.000187,2]
[326484256,1714991435646,-322.8286654,0.00018737,2]
[326484257,1714991435656,-204.1392147,0.0001874,2]
[326484258,1714991435666,-150.0,0.0001875,3]
[326484259,1714991435675,-186.32118189,0.00018763,2]
[326484260,1714991435685,-1627.47367983,0.00018763,2]
[326484261,1714991435695,-151.0,0.00018763,2]
[326484262,1714991435704,-278.265682,0.00018763,2]
[326484263,1714991435718,-151.0,0.00018763,2]
[326484264,1714991435727,-1195.107408,0.00018763,2]
[326484265,1714991435737,-151.0,0.00018763,2]
[326484266,1714991435747,-633.366994,0.00018763,2]
[326484267,1714991435757,-1195.107408,0.00018763,2]
[326484268,1714991435767,-633.366994,0.00018763,2]
[326484269,1714991435777,-892.134924,0.00018763,2]
[326484270,1714991435787,-212.525029,0.00018763,2]
[326484271,1714991435796,-212.525029,0.00018763,2]
[326484272,1714991435811,-1175.932323,0.00018763,2]
[326484273,1714991435820,-1175.932323,0.00018763,2]
[326484274,1714991435830,-447.767019,0.00018763,2]
[326484275,1714991435840,-447.767019,0.00018763,2]
[326484276,1714991435850,-379.288195,0.00018764,2]
[326484277,1714991435859,-154.85497536,0.00018798,2]
[326484278,1714991435868,-1396.02575092,0.00018798,2]
[326484279,1714991435878,-409.52572391,0.00018798,2]
[326484280,1714991435888,-154.83330191,0.00018798,2]
[326484281,1714991435897,-155.05110702,0.00018798,2]
[326484282,1714991435907,-718.32745363,0.00018798,2]
[326484283,1714991435917,-309.36581937,0.00018798,2]
[326484284,1714991435926,-154.86179185,0.00018798,2]
[326484285,1714991435935,-212.43605895,0.00018798,2]
[326484286,1714991435944,-314.90538331,0.00018798,2]
[326484287,1714991435954,-163.23384363,0.00018798,2]
[326484288,1714991435963,-193.60652578,0.00018798,2]
[326484289,1714991435972,-1893.19317664,0.00018798,2]
[326484290,1714991435982,-469.23588945,0.00018798,2]
[326484291,1714991436002,-473.08254773,0.00018798,2]
[326484292,1714991436012,-1378.05719331,0.00018798,2]
[326484293,1714991436022,-158.07345455,0.00018798,2]
[326484294,1714991436032,-154.78330338,0.00018798,2]
[326484295,1714991436041,-309.42762145,0.00018798,2]
[326484296,1714991436053,-475.53679444,0.00018798,2]
[326484297,1714991436063,-2800.50707497,0.00018798,2]
[326484298,1714991436072,-155.13424221,0.00018798,2]
[326484299,1714991436082,-2151.93155539,0.00018798,2]
[326484300,1714991436092,-309.50480468,0.00018798,2]
[326484301,1714991436102,-189.53891685,0.00018798,2]
[326484302,1714991436112,-1540.00057218,0.00018798,2]
[326484303,1714991436122,-337.43949234,0.00018798,2]
[326484304,1714991436132,-665.95737159,0.00018798,2]
[326484305,1714991436142,-488.60277858,0.00018798,2]
[326484306,1714991436152,-154.9617897,0.00018798,2]
[326484307,1714991436162,-151.0,0.00018798,2]
[326484308,1714991436172,-151.0,0.00018798,2]
[326484309,1714991436182,-151.0,0.00018798,2]
[326484310,1714991436191,-151.0,0.00018798,2]
[326484311,1714991436201,-151.0,0.00018798,2]
[326484312,1714991436210,-151.0,0.00018798,2]
[326484313,1714991436219,-151.0,0.00018798,2]
[326484314,1714991436228,-151.0,0.00018798,2]
[326484315,1714991436238,-151.0,0.00018798,2]
[326484316,1714991436247,-151.0,0.00018798,2]
[326484317,1714991436257,-151.0,0.00018798,2]
[326484318,1714991436266,-1195.107408,0.00018798,2]
[326484319,1714991436276,-151.0,0.00018798,2]
[326484320,1714991436291,-1195.107408,0.00018798,2]
[326484321,1714991436302,-181.66843,0.00018798,2]
[326484322,1714991436311,-1195.107408,0.00018798,2]
[326484323,1714991436321,-1195.107408,0.00018798,2]
[326484324,1714991436330,-1195.107408,0.00018798,2]
[326484325,1714991436340,-633.366994,0.00018798,2]
[326484326,1714991436349,-633.366994,0.00018798,2]
[326484327,1714991436359,-633.366994,0.00018798,2]
[326484328,1714991436371,-633.366994,0.00018798,2]
[326484329,1714991436380,-633.366994,0.00018798,2]
[326484330,1714991436390,-1195.107408,0.00018798,2]
[326484331,1714991436400,-1195.107408,0.00018798,2]
[326484332,1714991436410,-1195.107408,0.00018798,2]
[326484333,1714991436419,-1195.107408,0.00018798,2]
[326484334,1714991436429,-1195.107408,0.00018798,2]
[326484335,1714991436438,-633.366994,0.00018798,2]
[326484336,1714991436448,-633.366994,0.00018798,2]
[326484337,1714991436458,-633.366994,0.00018798,2]
[326484338,1714991436468,-633.366994,0.00018798,2]
[326484339,1714991436477,-633.367004,0.00018798,2]
[326484340,1714991436487,-892.134924,0.00018798,2]
[326484341,1714991436497,-892.134924,0.00018798,2]
[326484342,1714991436506,-892.134924,0.00018798,2]
[326484343,1714991436516,-892.134924,0.00018798,2]
[326484344,1714991436526,-892.134924,0.00018798,2]
[326484345,1714991436536,-892.134924,0.00018798,2]
[326484346,1714991436550,-892.134916,0.00018798,2]
[326484347,1714991436663,-212.525029,0.00018798,2]
[326484348,1714991436689,-212.525029,0.00018798,2]
[326484349,1714991436699,-212.525029,0.00018798,2]
[326484350,1714991436709,-212.525029,0.00018798,2]
[326484351,1714991436719,-212.525029,0.00018798,2]
[326484352,1714991436728,-212.525029,0.00018798,2]
[326484353,1714991436738,-212.525029,0.00018798,2]
[326484354,1714991436749,-212.525029,0.00018798,2]
[326484355,1714991436759,-212.525029,0.00018798,2]
[326484356,1714991436768,-212.525033,0.00018798,2]
[326484357,1714991436778,-1175.932323,0.00018798,2]
[326484358,1714991436788,-1175.932329,0.00018798,2]
[326484359,1714991436799,-447.767019,0.00018798,2]
[326484360,1714991436809,-447.767015,0.00018798,2]
[326484361,1714991436818,-530.7705715,0.00018799,2]
[326484362,1714991436828,-133878.72382913,0.000188,2]
[326484363,1714991436845,-159181.14011996,0.000188,2]
[326484391,1714991439191,-465.03,0.0001869,3]
[326484392,1714991439201,-116304.96999999,0.000188,2]
[326484468,1714991445796,-356.85397,0.000186,2]
[326484469,1714991445806,-356.85397,0.000186,2]
[326484470,1714991445817,-356.85397,0.00018666,2]
[326484471,1714991445829,-356.85397,0.00018698,2]
[326484472,1714991445838,-356.85397,0.00018698,2]
[326484473,1714991445847,-356.85397,0.00018699,2]
[326484474,1714991445858,-356.85397,0.000187,2]
[326484475,1714991445867,-356.85397,0.000187,2]
[326484476,1714991445877,-356.85397,0.000187,2]
[326484477,1714991445886,-356.85397,0.000187,2]
[326484478,1714991445896,-356.85397,0.000187,2]
[326484479,1714991445905,-1085.66987175,0.000188,2]
[326484480,1714991445915,-322.8286654,0.00018805,2]
[326484481,1714991445924,-493.0,0.00018848,2]
[326484482,1714991445933,-891.44988474,0.00018859,2]
[326484483,1714991445943,-709.25177547,0.00018859,2]
[326484484,1714991445952,-1679.27061659,0.00018863,2]
[326484485,1714991445961,-322.8286654,0.00018873,2]
[326484486,1714991445970,-1631.58216593,0.000189,2]
[326484487,1714991445980,-1716.63430314,0.000189,2]
[326484488,1714991445989,-3009.68,0.00018904,2]
[326484489,1714991445999,-3009.68,0.00018904,2]
[326484490,1714991446008,-3009.68,0.00018904,2]
[326484491,1714991446018,-3009.68,0.00018904,2]
[326484492,1714991446027,-3009.68,0.00018904,2]
[326484493,1714991446037,-2456.52963223,0.00018904,2]
[326484507,1714991447026,-356.85397,0.00018666,2]
[326484508,1714991447036,-356.85397,0.00018698,2]
[326484509,1714991447046,-356.85397,0.00018698,2]
[326484510,1714991447055,-273.25764425,0.00018698,2]
[326484511,1714991447065,-604.49379352,0.00018698,2]
[326484512,1714991447074,-356.85397,0.00018699,2]
[326484513,1714991447084,-356.85397,0.000187,2]
[326484514,1714991447099,-356.85397,0.000187,2]
[326484515,1714991447109,-553.15036777,0.00018904,2]
[326484516,1714991447118,-3009.68,0.00018904,2]
[326484517,1714991447127,-338.74511814,0.00018904,2]
[326484520,1714991447142,-841.1231325,0.00018904,2]
[326484525,1714991590022,154.7215013,9.999e-05,2]
[326484526,1714991601405,154.7215013,9.999e-05,2]
[326484527,1714991715049,154.7215013,9.999e-05,2]
[326484548,1714992035647,213.501748,0.0001589,2]
[326484549,1714992060408,816.50766108,9.999e-05,2]
[326484550,1714992079138,294.38082405,0.000137,2]
[326484551,1714992213269,1080.23623527,9.999e-05,2]
[326484560,1714992237167,3000.0,0.00016,2]
[326484561,1714992254655,3000.0,0.00016,2]
[326484562,1714992281982,3000.0,0.000162,2]
[326484563,1714992293989,24900.0,0.00015814,2]
[326484564,1714992297608,2103.48558965,0.00015813,2]
[326484565,1714992362145,3000.0,0.000162,2]
[326484566,1714992370973,3000.0,0.000162,2]
[326484567,1714992391551,3000.0,0.000162,2]
[326484568,1714992414410,3000.0,0.000162,2]
[326484569,1714992426908,199.85,0.000162,2]
[326484570,1714992436794,3000.0,0.000162,2]
[326484571,1714992469539,947.9022,0.000162,2]
[326484572,1714992524936,193.569548,0.0001589,2]
[326484573,1714992580430,1347.83105685,9.999e-05,2]
[326484586,1714992624979,816.50766108,9.999e-05,2]
[326484587,1714992627024,465.09462597,9.999e-05,2]
[326484616,1714992635140,-3054.9715797,0.00016794,2]
[326484617,1714992635151,-13158.2903715,0.000168,2]
[326484618,1714992635163,-654.45326628,0.00016812,2]
[326484619,1714992635173,-376.37674269,0.00016816,2]
[326484620,1714992635183,-1346.51244235,0.00016816,2]
[326484621,1714992635193,-405.75376683,0.00016816,2]
[326484622,1714992635203,-518.84523065,0.00016817,2]
[326484623,1714992635213,-500.0,0.00016817,2]
[326484624,1714992635223,-500.0,0.00016817,2]
[326484625,1714992635233,-487.20661339,0.00016817,2]
[326484626,1714992635244,-500.0,0.00016817,2]
[326484627,1714992635254,-500.0,0.00016817,2]
[326484628,1714992635264,-500.0,0.00016817,2]
[326484629,1714992635274,-500.0,0.00016817,2]
[326484630,1714992635284,-500.0,0.00016817,2]
[326484631,1714992635295,-1000.0,0.00016817,2]
[326484632,1714992635305,-495.46202359,0.00016817,2]
[326484633,1714992635315,-500.0,0.00016817,2]
[326484634,1714992635326,-500.0,0.00016817,2]
[326484635,1714992635336,-500.0,0.00016817,2]
[326484636,1714992635346,-2727.05,0.00016817,2]
[326484637,1714992635356,-500.0,0.00016817,2]
[326484638,1714992635366,-539.4,0.00016817,2]
[326484639,1714992635379,-500.0,0.00016817,2]
[326484640,1714992635390,-500.0,0.00016817,2]
[326484641,1714992635399,-500.0,0.00016817,2]
[326484642,1714992635409,-6051.27961048,0.00016817,2]
[326484644,1714992635975,294.38082405,0.000137,2]
[326484782,1714992639042,-6368.50038952,0.00016817,2]
[326484783,1714992639051,-500.0,0.00016817,2]
[326484784,1714992639062,-500.0,0.00016817,2]
[326484785,1714992639072,-502.95269505,0.00016817,2]
[326484786,1714992639082,-500.0,0.00016817,2]
[326484787,1714992639092,-500.0,0.00016817,2]
[326484788,1714992639102,-500.0,0.00016817,2]
[326484789,1714992639113,-500.0,0.00016817,2]
[326484790,1714992639128,-500.0,0.00016817,2]
[326484791,1714992639138,-1115.63,0.00016817,2]
[326484792,1714992639149,-291.90695137,0.00016817,2]
[326484793,1714992639159,-500.0,0.00016817,2]
[326484794,1714992639170,-500.0,0.00016817,2]
[326484795,1714992639179,-141.00996407,0.00016817,2]
[326484824,1714992644756,-487.76253461,0.00016816,2]
[326484828,1714992644766,-33.18746539,0.00016817,2]
[326484901,1714992645607,-325.80257054,0.00016817,2]
[326484918,1714992645789,-500.0,0.00016817,2]
[326484920,1714992645799,-500.0,0.00016817,2]
[326484922,1714992645808,-566.9,0.00016817,2]
[326484924,1714992645818,-500.0,0.00016817,2]
[326484926,1714992645827,-15662.02,0.00016817,2]
[326484928,1714992645837,-1578.45,0.00016817,2]
[326484930,1714992645847,-500.0,0.00016817,2]
[326484932,1714992645861,-1523.36,0.00016817,2]
[326484934,1714992645870,-767.09,0.00016817,2]
[326484936,1714992645891,-500.0,0.00016817,2]
[326484939,1714992645905,-500.0,0.00016817,2]
[326484941,1714992645919,-500.0,0.00016817,2]
[326484943,1714992645929,-604.89,0.00016817,2]
[326484945,1714992645939,-3995.1,0.00016817,2]
[326484947,1714992645948,-500.0,0.00016817,2]
[326484949,1714992645959,-500.0,0.00016817,2]
[326484951,1714992645968,-500.0,0.00016818,2]
[326484953,1714992645978,-500.0,0.00016818,2]
[326484955,1714992645987,-500.0,0.00016818,2]
[326484956,1714992645997,-500.0,0.00016818,2]
[326484958,1714992646007,-500.0,0.00016818,2]
[326484960,1714992646016,-500.0,0.00016818,2]
[326484962,1714992646025,-500.0,0.00016818,2]
[326484964,1714992646034,-500.0,0.00016818,2]
[326484966,1714992646043,-500.0,0.00016818,2]
[326484968,1714992646053,-524.94494214,0.00016818,2]
[326484970,1714992646063,-500.0,0.00016818,2]
[326484972,1714992646072,-500.35865836,0.00016818,2]
[326484974,1714992646082,-676.75,0.00016818,2]
[326484976,1714992646092,-588.2377178,0.00016818,2]
[326484978,1714992646101,-500.0,0.00016818,2]
[326484980,1714992646111,-500.0,0.00016818,2]
[326484982,1714992646120,-807.57,0.00016818,2]
[326484985,1714992646134,-185.68604218,0.00016818,2]
[326484987,1714992646144,-1943.6,0.00016818,2]
[326484989,1714992646155,-500.0,0.00016818,2]
[326484991,1714992646166,-500.0,0.00016818,2]
[326484993,1714992646175,-1424.49,0.00016818,2]
[326484995,1714992646186,-2960.98,0.00016818,2]
[326484997,1714992646196,-500.0,0.00016818,2]
[326484999,1714992646207,-500.0,0.00016818,2]
[326485000,1714992646217,-1475.74,0.00016818,2]
[326485001,1714992646228,-500.0,0.00016818,2]
[326485002,1714992646239,-580.65,0.00016818,2]
[326485003,1714992646249,-500.0,0.00016818,2]
[326485004,1714992646259,-500.0,0.00016818,2]
[326485005,1714992646269,-500.0,0.00016818,2]
[326485006,1714992646279,-720.56,0.00016818,2]
[326485007,1714992646289,-655.18,0.00016818,2]
[326485008,1714992646298,-151.0,0.00016818,2]
[326485009,1714992646308,-500.0,0.00016818,2]
[326485010,1714992646318,-500.0,0.00016818,2]
[326485011,1714992646327,-768.44,0.00016818,2]
[326485012,1714992646337,-500.0,0.00016818,2]
[326485013,1714992646347,-500.0,0.00016818,2]
[326485014,1714992646356,-500.0,0.00016818,2]
[326485015,1714992646366,-677.08,0.00016818,2]
[326485016,1714992646379,-875.25,0.00016818,2]
[326485017,1714992646390,-500.0,0.00016818,2]
[326485018,1714992646401,-565.02359435,0.00016818,2]
[326485019,1714992646411,-500.0,0.00016818,2]
[326485020,1714992646421,-500.0,0.00016818,2]
[326485021,1714992646431,-500.0,0.00016818,2]
[326485022,1714992646441,-485.28242722,0.00016818,2]
[326485023,1714992646451,-500.0,0.00016818,2]
[326485024,1714992646461,-2041.46,0.00016818,2]
[326485025,1714992646471,-500.0,0.00016818,2]
[326485026,1714992646480,-500.0,0.00016818,2]
[326485027,1714992646490,-500.0,0.00016818,2]
[326485028,1714992646501,-500.0,0.00016818,2]
[326485029,1714992646510,-500.0,0.00016818,2]
[326485030,1714992646521,-810.22,0.00016818,2]
[326485031,1714992646531,-504.19085343,0.00016818,2]
[326485032,1714992646542,-500.0,0.00016818,2]
[326485033,1714992646553,-500.0,0.00016818,2]
[326485034,1714992646562,-500.0,0.00016818,2]
[326485035,1714992646572,-500.0,0.00016818,2]
[326485036,1714992646582,-509.44434726,0.00016818,2]
[326485037,1714992646591,-500.0,0.00016818,2]
[326485038,1714992646601,-500.0,0.00016818,2]
[326485039,1714992646611,-500.0,0.00016818,2]
[326485040,1714992646620,-500.0,0.00016818,2]
[326485041,1714992646640,-500.0,0.00016818,2]
[326485042,1714992646650,-500.0,0.00016818,2]
[326485043,1714992646660,-500.0,0.00016818,2]
[326485044,1714992646670,-599.62,0.00016818,2]
[326485045,1714992646680,-794.03,0.00016818,2]
[326485046,1714992646690,-500.0,0.00016818,2]
[326485047,1714992646700,-194.85461622,0.00016818,2]
[326485048,1714992646709,-500.0,0.00016818,2]
[326485049,1714992646719,-645.51,0.00016818,2]
[326485050,1714992646729,-500.0,0.00016818,2]
[326485051,1714992646739,-500.0,0.00016818,2]
[326485052,1714992646749,-545.57,0.00016818,2]
[326485053,1714992646759,-500.0,0.00016818,2]
[326485054,1714992646768,-718.56,0.00016818,2]
[326485055,1714992646780,-500.0,0.00016818,2]
[326485056,1714992646790,-500.0,0.00016818,2]
[326485057,1714992646799,-500.0,0.00016818,2]
[326485058,1714992646809,-501.38991682,0.00016818,2]
[326485059,1714992646818,-856.67,0.00016818,2]
[326485061,1714992646827,-500.0,0.00016818,2]
[326485063,1714992646838,-892.06,0.00016818,2]
[326485065,1714992646847,-500.0,0.00016818,2]
[326485066,1714992646856,-500.0,0.00016818,2]
[326485068,1714992646867,-500.0,0.00016818,2]
[326485069,1714992646883,-500.0,0.00016818,2]
[326485071,1714992646892,-500.0,0.00016818,2]
[326485072,1714992646902,-500.0,0.00016818,2]
[326485075,1714992646912,-500.0,0.00016818,2]
[326485076,1714992646925,-562.76917341,0.00016818,2]
[326485078,1714992646934,-500.0,0.00016818,2]
[326485079,1714992646944,-500.0,0.00016818,2]
[326485080,1714992646954,-500.0,0.00016818,2]
[326485081,1714992646964,-500.0,0.00016818,2]
[326485082,1714992646974,-506.60193855,0.00016818,2]
[326485083,1714992646983,-500.0,0.00016818,2]
[326485084,1714992646994,-798.64,0.00016818,2]
[326485085,1714992647004,-500.0,0.00016818,2]
[326485086,1714992647013,-202.05074407,0.00016818,2]
[326485087,1714992647023,-578.47,0.00016818,2]
[326485088,1714992647033,-507.94242711,0.00016818,2]
[326485089,1714992647042,-606.8,0.00016818,2]
[326485090,1714992647051,-3300.93,0.00016818,2]
[326485091,1714992647061,-500.0,0.00016818,2]
[326485092,1714992647070,-500.0,0.00016818,2]
[326485093,1714992647080,-500.0,0.00016818,2]
[326485094,1714992647089,-797.9,0.00016818,2]
[326485095,1714992647099,-500.0,0.00016818,2]
[326485096,1714992647108,-500.0,0.00016818,2]
[326485097,1714992647117,-500.0,0.00016818,2]
[326485098,1714992647132,-592.8,0.00016818,2]
[326485099,1714992647143,-500.38226306,0.00016818,2]
[326485100,1714992647152,-500.0,0.00016925,2]
[326485101,1714992647162,-500.0,0.00016925,2]
[326485102,1714992647171,-500.0,0.00016925,2]
[326485103,1714992647180,-500.0,0.00016925,2]
[326485104,1714992647197,-500.0,0.00016925,2]
[326485105,1714992647207,-359.43020924,0.00016925,2]
[326485106,1714992647217,-500.0,0.00016925,2]
[326485107,1714992647226,-500.0,0.00016925,2]
[326485108,1714992647235,-500.0,0.00016925,2]
[326485109,1714992647244,-309.41211698,0.00016925,2]
[326485110,1714992647253,-500.0,0.00016925,2]
[326485111,1714992647263,-114.10632718,0.00016925,2]
[326485119,1714992649103,-463.87858037,0.00016816,2]
[326485120,1714992649113,-3054.9715797,0.00016816,2]
[326485122,1714992649122,-342.14983993,0.00016925,2]
[326485124,1714992649138,-191.40383289,0.00016925,2]
[326485126,1714992649147,-500.0,0.00016925,2]
[326485128,1714992649157,-500.0,0.00016925,2]